[Event "Kragero Resort Chess B 2019"]
[Site "Kragero"]
[Date "2019.02.20"]
[Round "1.1"]
[White "Omtvedt, Per"]
[Black "Berbom, Henrik"]
[Result "1-0"]
[ECO "C89"]
[WhiteElo "1918"]
[BlackElo "1539"]
[Annotator "NA"]
[PlyCount "95"]
[EventDate "2019.02.20"]
[EventType "swiss"]
[EventCountry "NOR"]
[SourceTitle "playchess.com"]
[Source "ChessBase"]
[SourceQuality "1"]
[TimeControl "5400+30"]

1. e4 {[%emt 0:00:00]} e5 {[%emt 0:00:00]} 2. Nf3 {[%emt 0:00:01]} Nc6 {[%emt 0:00:03]} 3. Bb5 {[%emt 0:00:30]} a6 {[%emt 0:00:11]} 4. Ba4 {[%emt 0:00:05]} Nf6 {[%emt 0:00:05]} 5. O-O {[%emt 0:00:26]} Be7 {[%emt 0:00:07]} 6. Re1 {[%emt 0:00:05]} b5 {[%emt 0:00:05]} 7. Bb3 {[%emt 0:00:04]} O-O {[%emt 0:00:10]} 8. c3 {[%emt 0:00:20]} d5 {[%emt 0:00:13]} 9. d4 {[%emt 0:01:18]} dxe4 {[%emt 0:17:47]} 10. Nxe5 {[%emt 0:00:16]} Nxe5 {[%emt 0:00:20]} 11. dxe5 {[%emt 0:00:14]} Qxd1 {[%emt 0:01:44]} 12. Bxd1 {[%emt 0:04:40]} Ng4 {[%emt 0:05:58]} 13. Rxe4 {[%emt 0:03:10]} Rd8 {[%emt 0:03:26]} 14. Bxg4 {[%emt 0:12:57]} Bxg4 {[%emt 0:00:30]} 15. Re1 {[%emt 0:00:10]} Rd5 {[%emt 0:05:59]} 16. h3 {[%emt 0:10:33]} Be6 {[%emt 0:19:56]} 17. Nd2 {[%emt 0:05:53]} Rad8 {[%emt 0:04:51]} 18. Nb3 {[%emt 0:02:20]} b4 {[%emt 0:21:35]} 19. Nd4 {[%emt 0:04:23]} bxc3 {[%emt 0:01:17]} 20. bxc3 {[%emt 0:01:36]} Bc5 {[%emt 0:05:43]} 21. Nxe6 {[%emt 0:03:57]} fxe6 {[%emt 0:00:05]} 22. Rb1 {[%emt 0:01:54]} Rd1 {[%emt 0:03:22]} 23. Kf1 {[%emt 0:01:22]} R1d3 {[%emt 0:01:26]} 24. Rb3 {[%emt 0:02:03]} Bb6 {[%emt 0:03:06]} 25. Ra3 {[%emt 0:06:56]} Rf8 {[%emt 0:00:59]} 26. f3 {[%emt 0:01:20]} a5 {[%emt 0:00:16]} 27. c4 {[%emt 0:03:57]} Rxa3 {[%emt 0:00:31]} 28. Bxa3 {[%emt 0:00:01]} Rd8 {[%emt 0:00:09]} 29. Ke2 {[%emt 0:01:04]} a4 {[%emt 0:01:27]} 30. Bb2 {[%emt 0:03:42]} Bc5 {[%emt 0:00:41]} 31. Rd1 {[%emt 0:00:49]} Rxd1 {[%emt 0:00:32]} 32. Kxd1 {[%emt 0:00:03]} Kf7 {[%emt 0:00:49]} 33. Ke2 {[%emt 0:00:34]} Kg6 {[%emt 0:01:14]} 34. f4 {[%emt 0:00:15]} Kf5 {[%emt 0:00:08]} 35. Kf3 {[%emt 0:00:07]} h5 {[%emt 0:00:14]} 36. g4+ {[%emt 0:00:12]} hxg4+ {[%emt 0:00:22]} 37. hxg4+ {[%emt 0:00:02]} Kg6 {[%emt 0:00:10]} 38. Ke4 {[%emt 0:00:12]} Bb4 {[%emt 0:00:12]} 39. Bc1 {[%emt 0:00:48]} Bc5 {[%emt 0:00:48]} 40. f5+ {[%emt 0:00:42]} Kf7 {[%emt 0:00:08]} 41. Be3 {[%emt 0:01:13]} Be7 {[%emt 0:01:53]} 42. c5 {[%emt 0:01:28]} c6 {[%emt 0:00:18]} 43. Kd4 {[%emt 0:01:05]} Bd8 {[%emt 0:00:31]} 44. Kc4 {[%emt 0:00:24]} Ba5 {[%emt 0:00:14]} 45. Bd4 {[%emt 0:00:17]} exf5 {[%emt 0:01:18]} 46. gxf5 {[%emt 0:00:13]} g5 {[%emt 0:00:20]} 47. Kd3 {[%emt 0:06:33]} Bb4 {[%emt 0:00:32]} 48. Ke4 {[%emt 0:00:20]} 1-0

[Event "Kragero Resort Chess B 2019"]
[Site "Kragero"]
[Date "2019.02.20"]
[Round "1.2"]
[White "Johansen, Bjorn"]
[Black "Manukyan, Hayk T."]
[Result "0-1"]
[ECO "D00"]
[WhiteElo "1539"]
[BlackElo "1806"]
[Annotator "NA"]
[PlyCount "96"]
[EventDate "2019.02.20"]
[EventType "swiss"]
[EventCountry "NOR"]
[SourceTitle "playchess.com"]
[Source "ChessBase"]
[SourceQuality "1"]
[TimeControl "5400+30"]

1. d4 {[%emt 0:05:40]} d5 {[%emt 0:00:00]} 2. Nc3 {[%emt 0:00:04]} Nf6 {[%emt 0:00:00]} 3. e3 {[%emt 0:00:10]} c6 {[%emt 0:00:18]} 4. Nf3 {[%emt 0:00:24]} Bg4 {[%emt 0:00:08]} 5. h3 {[%emt 0:00:11]} Bxf3 {[%emt 0:00:50]} 6. Qxf3 {[%emt 0:00:14]} Nbd7 {[%emt 0:00:10]} 7. Bd3 {[%emt 0:00:17]} e5 {[%emt 0:00:18]} 8. dxe5 {[%emt 0:01:14]} Nxe5 {[%emt 0:00:09]} 9. Qd1 {[%emt 0:01:07]} Bb4 {[%emt 0:03:35]} 10. O-O {[%emt 0:00:29]} O-O {[%emt 0:00:10]} 11. a3 {[%emt 0:00:31]} Bxc3 {[%emt 0:04:27]} 12. bxc3 {[%emt 0:00:28]} Ne4 {[%emt 0:01:00]} 13. Bb2 {[%emt 0:00:55]} Nc4 {[%emt 0:00:41]} 14. Bxc4 {[%emt 0:00:44]} dxc4 {[%emt 0:00:03]} 15. Qe2 {[%emt 0:01:28]} b5 {[%emt 0:00:52]} 16. Rfd1 {[%emt 0:00:47]} Qf6 {[%emt 0:04:34]} 17. Rd4 {[%emt 0:01:57]} Nc5 {[%emt 0:00:24]} 18. Rad1 {[%emt 0:01:06]} Rfd8 {[%emt 0:00:53]} 19. Qg4 {[%emt 0:04:29]} Ne6 {[%emt 0:01:48]} 20. Rd6 {[%emt 0:02:45]} Rac8 {[%emt 0:10:21]} 21. R1d2 {[%emt 0:07:23]} Qe7 {[%emt 0:01:55]} 22. Qd1 {[%emt 0:01:04]} Rxd6 {[%emt 0:00:17]} 23. Rxd6 {[%emt 0:00:03]} Rd8 {[%emt 0:00:10]} 24. Rxd8+ {[%emt 0:00:55]} Qxd8 {[%emt 0:00:02]} 25. Qxd8+ {[%emt 0:01:50]} Nxd8 {[%emt 0:00:13]} 26. f4 {[%emt 0:00:21]} f5 {[%emt 0:00:14]} 27. g4 {[%emt 0:00:05]} g6 {[%emt 0:00:18]} 28. Kf2 {[%emt 0:00:03]} Ne6 {[%emt 0:00:28]} 29. Kf3 {[%emt 0:00:12]} Nc5 {[%emt 0:00:08]} 30. h4 {[%emt 0:01:06]} h5 {[%emt 0:03:08]} 31. g5 {[%emt 0:01:57]} Kf7 {[%emt 0:00:22]} 32. Bc1 {[%emt 0:00:15]} Ne4 {[%emt 0:00:13]} 33. Bb2 {[%emt 0:00:56]} Ke6 {[%emt 0:00:10]} 34. Ke2 {[%emt 0:00:46]} Kd5 {[%emt 0:00:09]} 35. Ba1 {[%emt 0:00:29]} Nc5 {[%emt 0:00:32]} 36. Kf3 {[%emt 0:00:21]} Na4 {[%emt 0:00:07]} 37. Kf2 {[%emt 0:03:04]} Ke4 {[%emt 0:00:06]} 38. Ke2 {[%emt 0:00:15]} Nb6 {[%emt 0:00:13]} 39. Bb2 {[%emt 0:00:51]} Nd5 {[%emt 0:00:04]} 40. Bc1 {[%emt 0:00:48]} Nxc3+ {[%emt 0:00:09]} 41. Kf2 {[%emt 0:00:46]} Na2 {[%emt 0:02:26]} 42. Bb2 {[%emt 0:00:13]} c3 {[%emt 0:00:09]} 43. Ba1 {[%emt 0:00:55]} a5 {[%emt 0:00:10]} 44. Ke2 {[%emt 0:01:16]} c5 {[%emt 0:00:13]} 45. Ke1 {[%emt 0:04:29]} Kxe3 {[%emt 0:00:36]} 46. a4 {[%emt 0:00:30]} b4 {[%emt 0:00:30]} 47. Kd1 {[%emt 0:01:58]} Kf2 {[%emt 0:00:22]} 48. Bxc3 {[%emt 0:01:32]} Nxc3+ {[%emt 0:00:03]} 0-1

[Event "Kragero Resort Chess B 2019"]
[Site "Kragero"]
[Date "2019.02.20"]
[Round "1.3"]
[White "Sjol, Henrik"]
[Black "Amarapala, Sheroni"]
[Result "0-1"]
[ECO "D00"]
[WhiteElo "1800"]
[BlackElo "1514"]
[Annotator "NA"]
[PlyCount "102"]
[EventDate "2019.02.20"]
[EventType "swiss"]
[EventCountry "NOR"]
[SourceTitle "playchess.com"]
[Source "ChessBase"]
[SourceQuality "1"]
[TimeControl "5400+30"]

1. d4 {[%emt 0:00:00]} d5 {[%emt 0:00:00]} 2. Bf4 {[%emt 0:00:00]} Bf5 {[%emt 0:00:25]} 3. e3 {[%emt 0:00:22]} c5 {[%emt 0:00:30]} 4. c3 {[%emt 0:03:58]} Nc6 {[%emt 0:03:23]} 5. Nf3 {[%emt 0:00:30]} Nf6 {[%emt 0:00:30]} 6. Nbd2 {[%emt 0:00:30]} e6 {[%emt 0:00:30]} 7. Bb5 {[%emt 0:00:30]} a6 {[%emt 0:00:30]} 8. Bxc6+ {[%emt 0:09:07]} bxc6 {[%emt 0:06:14]} 9. Ne5 {[%emt 0:00:49]} Qb6 {[%emt 0:00:30]} 10. dxc5 {[%emt 0:12:55]} Bxc5 {[%emt 0:00:30]} 11. Qb3 {[%emt 0:05:32]} Rc8 {[%emt 0:00:30]} 12. Ndf3 {[%emt 0:00:30]} O-O {[%emt 0:00:30]} 13. Nd4 {[%emt 0:00:30]} Bxd4 {[%emt 0:18:27]} 14. exd4 {[%emt 0:14:44]} Qb5 {[%emt 0:02:24]} 15. c4 {[%emt 0:08:05]} dxc4 {[%emt 0:04:37]} 16. Qxc4 {[%emt 0:03:44]} Qxc4 {[%emt 0:02:51]} 17. Nxc4 {[%emt 0:00:10]} Rcd8 {[%emt 0:03:53]} 18. Rd1 {[%emt 0:03:37]} Nd5 {[%emt 0:05:51]} 19. Bd6 {[%emt 0:04:36]} Rfe8 {[%emt 0:03:01]} 20. Bc5 {[%emt 0:00:32]} Bg6 {[%emt 0:03:48]} 21. Nd6 {[%emt 0:05:25]} Re7 {[%emt 0:01:41]} 22. O-O {[%emt 0:02:52]} e5 {[%emt 0:03:03]} 23. Nc4 {[%emt 0:02:10]} Ree8 {[%emt 0:04:50]} 24. Nxe5 {[%emt 0:01:20]} Bh5 {[%emt 0:03:11]} 25. Rde1 {[%emt 0:04:13]} Re6 {[%emt 0:03:12]} 26. f4 {[%emt 0:05:51]} f5 {[%emt 0:07:06]} 27. g3 {[%emt 0:02:26]} Rb8 {[%emt 0:02:38]} 28. Ba3 {[%emt 0:01:21]} Nc7 {[%emt 0:03:21]} 29. Rc1 {[%emt 0:02:15]} Rb6 {[%emt 0:02:24]} 30. b3 {[%emt 0:00:54]} Nd5 {[%emt 0:01:32]} 31. Rc5 {[%emt 0:00:37]} Be8 {[%emt 0:02:44]} 32. Rfc1 {[%emt 0:00:44]} Ne3 {[%emt 0:01:57]} 33. Kf2 {[%emt 0:01:07]} Ng4+ {[%emt 0:01:05]} 34. Nxg4 {[%emt 0:00:58]} fxg4 {[%emt 0:00:05]} 35. Re5 {[%emt 0:00:57]} Rxe5 {[%emt 0:00:45]} 36. dxe5 {[%emt 0:00:11]} Kf7 {[%emt 0:01:17]} 37. Ke3 {[%emt 0:00:42]} Rb5 {[%emt 0:01:33]} 38. Bc5 {[%emt 0:02:51]} Rb7 {[%emt 0:01:11]} 39. Rc4 {[%emt 0:00:21]} Rd7 {[%emt 0:01:25]} 40. Bd6 {[%emt 0:00:20]} Rb7 {[%emt 0:01:03]} 41. Kd4 {[%emt 0:00:26]} Ke6 {[%emt 0:00:22]} 42. Ra4 {[%emt 0:00:42]} c5+ {[%emt 0:00:40]} 43. Bxc5 {[%emt 0:00:48]} Bxa4 {[%emt 0:00:19]} 44. bxa4 {[%emt 0:00:01]} Rb2 {[%emt 0:00:34]} 45. Ke4 {[%emt 0:00:44]} g6 {[%emt 0:01:19]} 46. Kd4 {[%emt 0:01:10]} Rxa2 {[%emt 0:00:55]} 47. Kc3 {[%emt 0:00:43]} Rxa4 {[%emt 0:00:33]} 48. Kb3 {[%emt 0:00:09]} Ra1 {[%emt 0:01:38]} 49. Kb2 {[%emt 0:00:53]} Rh1 {[%emt 0:00:19]} 50. Kc3 {[%emt 0:00:20]} Rxh2 {[%emt 0:00:27]} 51. Kb4 {[%emt 0:00:34]} Rg2 {[%emt 0:00:34]} 0-1

[Event "Kragero Resort Chess B 2019"]
[Site "Kragero"]
[Date "2019.02.20"]
[Round "1.4"]
[White "Stromhaug, Kristoffer Wang"]
[Black "Erikstad, Olav"]
[Result "0-1"]
[ECO "B11"]
[WhiteElo "1493"]
[BlackElo "1777"]
[Annotator "NA"]
[PlyCount "56"]
[EventDate "2019.02.20"]
[EventType "swiss"]
[EventCountry "NOR"]
[SourceTitle "playchess.com"]
[Source "ChessBase"]
[SourceQuality "1"]
[TimeControl "5400+30"]

1. e4 {[%emt 0:00:00]} c6 {[%emt 0:00:02]} 2. d3 {[%emt 0:01:01]} d5 {[%emt 0:00:11]} 3. Nd2 {[%emt 0:00:16]} dxe4 {[%emt 0:00:17]} 4. Nxe4 {[%emt 0:00:56]} Nf6 {[%emt 0:00:13]} 5. Nf3 {[%emt 0:00:38]} Nxe4 {[%emt 0:00:23]} 6. dxe4 {[%emt 0:00:07]} Qxd1+ {[%emt 0:00:13]} 7. Kxd1 {[%emt 0:00:04]} Bg4 {[%emt 0:00:27]} 8. Be3 {[%emt 0:01:26]} Nd7 {[%emt 0:00:17]} 9. Be2 {[%emt 0:01:01]} O-O-O {[%emt 0:01:29]} 10. Nd2 {[%emt 0:02:21]} Bxe2+ {[%emt 0:00:50]} 11. Kxe2 {[%emt 0:01:07]} e6 {[%emt 0:00:10]} 12. Nc4 {[%emt 0:02:53]} b5 {[%emt 0:04:23]} 13. Na5 {[%emt 0:05:46]} Kc7 {[%emt 0:00:12]} 14. a4 {[%emt 0:00:23]} b4 {[%emt 0:07:04]} 15. Nc4 {[%emt 0:01:12]} Bc5 {[%emt 0:04:34]} 16. Bf4+ {[%emt 0:02:21]} Kc8 {[%emt 0:01:56]} 17. Rhd1 {[%emt 0:01:05]} f6 {[%emt 0:03:37]} 18. e5 {[%emt 0:04:35]} fxe5 {[%emt 0:04:54]} 19. Nxe5 {[%emt 0:04:35]} Rhf8 {[%emt 0:01:50]} 20. Nd3 {[%emt 0:05:35]} Be7 {[%emt 0:06:56]} 21. Bd2 {[%emt 0:03:48]} c5 {[%emt 0:06:25]} 22. a5 {[%emt 0:03:23]} Nf6 {[%emt 0:02:09]} 23. Nf4 {[%emt 0:01:30]} Bd6 {[%emt 0:03:35]} 24. Nd3 {[%emt 0:04:27]} c4 {[%emt 0:04:42]} 25. Nxb4 {[%emt 0:00:56]} Ne4 {[%emt 0:02:47]} 26. f3 {[%emt 0:02:53]} Nxd2 {[%emt 0:00:47]} 27. Nc6 {[%emt 0:00:23]} c3 {[%emt 0:02:06]} 28. Nxd8 {[%emt 0:02:47]} cxb2 {[%emt 0:00:11]} 0-1

[Event "Kragero Resort Chess B 2019"]
[Site "Kragero"]
[Date "2019.02.20"]
[Round "1.5"]
[White "Fjellheim, Benjamin"]
[Black "Tellefsen, Jan"]
[Result "1-0"]
[ECO "A13"]
[WhiteElo "1757"]
[BlackElo "1490"]
[Annotator "NA"]
[PlyCount "71"]
[EventDate "2019.02.20"]
[EventType "swiss"]
[EventCountry "NOR"]
[SourceTitle "playchess.com"]
[Source "ChessBase"]
[SourceQuality "1"]
[TimeControl "5400+30"]

1. Nf3 {[%emt 0:00:00]} d5 {[%emt 0:00:00]} 2. b3 {[%emt 0:00:00]} Nf6 {[%emt 0:00:06]} 3. Bb2 {[%emt 0:00:00]} e6 {[%emt 0:00:25]} 4. e3 {[%emt 0:00:00]} Be7 {[%emt 0:00:35]} 5. c4 {[%emt 0:00:18]} O-O {[%emt 0:01:54]} 6. Be2 {[%emt 0:00:54]} Nbd7 {[%emt 0:01:11]} 7. O-O {[%emt 0:00:08]} b6 {[%emt 0:01:24]} 8. cxd5 {[%emt 0:02:27]} Nxd5 {[%emt 0:01:26]} 9. d4 {[%emt 0:01:03]} c5 {[%emt 0:02:16]} 10. Nbd2 {[%emt 0:01:30]} Bb7 {[%emt 0:01:57]} 11. Rc1 {[%emt 0:00:55]} Rc8 {[%emt 0:01:36]} 12. Nc4 {[%emt 0:02:05]} Bf6 {[%emt 0:04:42]} 13. Nd6 {[%emt 0:05:05]} Rc7 {[%emt 0:00:53]} 14. Nb5 {[%emt 0:03:16]} Rc8 {[%emt 0:00:58]} 15. Nd6 {[%emt 0:00:22]} Rc7 {[%emt 0:00:17]} 16. Nxb7 {[%emt 0:00:05]} Rxb7 {[%emt 0:00:09]} 17. Qd2 {[%emt 0:00:53]} cxd4 {[%emt 0:04:58]} 18. Nxd4 {[%emt 0:02:41]} Nc5 {[%emt 0:04:45]} 19. Rfd1 {[%emt 0:13:09]} Qe7 {[%emt 0:08:10]} 20. Nc6 {[%emt 0:09:23]} Qd7 {[%emt 0:08:53]} 21. Bxf6 {[%emt 0:06:21]} Nxf6 {[%emt 0:00:54]} 22. Qxd7 {[%emt 0:02:05]} Ncxd7 {[%emt 0:04:17]} 23. Ba6 {[%emt 0:02:25]} Rbb8 {[%emt 0:04:34]} 24. Nxb8 {[%emt 0:00:14]} Rxb8 {[%emt 0:00:09]} 25. Rc8+ {[%emt 0:03:56]} Rxc8 {[%emt 0:00:13]} 26. Bxc8 {[%emt 0:00:03]} Nf8 {[%emt 0:00:19]} 27. Rd8 {[%emt 0:03:09]} g6 {[%emt 0:02:04]} 28. Ba6 {[%emt 0:01:38]} Nd5 {[%emt 0:00:55]} 29. Ra8 {[%emt 0:02:40]} Nb4 {[%emt 0:00:20]} 30. Rxa7 {[%emt 0:00:21]} Nxa2 {[%emt 0:00:16]} 31. Bc4 {[%emt 0:00:34]} Nc3 {[%emt 0:00:31]} 32. Rb7 {[%emt 0:00:35]} Nd5 {[%emt 0:01:58]} 33. Bxd5 {[%emt 0:00:40]} exd5 {[%emt 0:00:06]} 34. Rxb6 {[%emt 0:00:10]} Ne6 {[%emt 0:00:32]} 35. Rd6 {[%emt 0:00:35]} Nc5 {[%emt 0:00:42]} 36. b4 {[%emt 0:00:54]} 1-0

[Event "Kragero Resort Chess B 2019"]
[Site "Kragero"]
[Date "2019.02.20"]
[Round "1.6"]
[White "Ihlen, Sivert"]
[Black "Hausken, Andreas Skrede"]
[Result "0-1"]
[ECO "B48"]
[WhiteElo "1485"]
[BlackElo "1752"]
[Annotator "NA"]
[PlyCount "58"]
[EventDate "2019.02.20"]
[EventType "swiss"]
[EventCountry "NOR"]
[SourceTitle "playchess.com"]
[Source "ChessBase"]
[SourceQuality "1"]
[TimeControl "5400+30"]

1. e4 {[%emt 0:00:00]} c5 {[%emt 0:00:00]} 2. Nf3 {[%emt 0:00:00]} e6 {[%emt 0:00:00]} 3. d4 {[%emt 0:00:00]} cxd4 {[%emt 0:00:05]} 4. Nxd4 {[%emt 0:00:03]} Nc6 {[%emt 0:00:25]} 5. Nc3 {[%emt 0:00:46]} Qc7 {[%emt 0:00:59]} 6. Be3 {[%emt 0:02:44]} a6 {[%emt 0:00:17]} 7. Qf3 {[%emt 0:03:46]} Nf6 {[%emt 0:02:32]} 8. Qg3 {[%emt 0:02:56]} Qxg3 {[%emt 0:05:54]} 9. hxg3 {[%emt 0:00:12]} Ng4 {[%emt 0:00:27]} 10. Be2 {[%emt 0:13:16]} Nxe3 {[%emt 0:01:40]} 11. fxe3 {[%emt 0:00:36]} Bc5 {[%emt 0:01:01]} 12. O-O-O {[%emt 0:02:39]} b5 {[%emt 0:07:21]} 13. Rh5 {[%emt 0:07:25]} Bb6 {[%emt 0:04:47]} 14. Rdh1 {[%emt 0:05:54]} h6 {[%emt 0:04:18]} 15. g4 {[%emt 0:02:33]} Nxd4 {[%emt 0:01:01]} 16. exd4 {[%emt 0:00:55]} Bxd4 {[%emt 0:01:08]} 17. g5 {[%emt 0:00:20]} Bb7 {[%emt 0:02:54]} 18. gxh6 {[%emt 0:08:54]} Rxh6 {[%emt 0:00:49]} 19. Bf3 {[%emt 0:13:06]} Ke7 {[%emt 0:07:07]} 20. Rxh6 {[%emt 0:05:55]} Be3+ {[%emt 0:00:46]} 21. Kd1 {[%emt 0:00:50]} Bxh6 {[%emt 0:00:50]} 22. e5 {[%emt 0:03:56]} Bxf3+ {[%emt 0:00:55]} 23. gxf3 {[%emt 0:00:06]} Bf4 {[%emt 0:00:19]} 24. Re1 {[%emt 0:01:47]} Rh8 {[%emt 0:00:37]} 25. Re4 {[%emt 0:04:06]} g5 {[%emt 0:00:46]} 26. a4 {[%emt 0:03:01]} Rh1+ {[%emt 0:00:18]} 27. Ke2 {[%emt 0:01:14]} Rh2+ {[%emt 0:00:58]} 28. Kd1 {[%emt 0:00:16]} Rd2+ {[%emt 0:01:44]} 29. Kc1 {[%emt 0:00:27]} Rd4+ {[%emt 0:01:12]} 0-1

[Event "Kragero Resort Chess B 2019"]
[Site "Kragero"]
[Date "2019.02.20"]
[Round "1.7"]
[White "Opseth, Oliver"]
[Black "Evenshaug, Amadeus Hestvik"]
[Result "0-1"]
[ECO "D02"]
[WhiteElo "1750"]
[BlackElo "1472"]
[Annotator "NA"]
[PlyCount "104"]
[EventDate "2019.02.20"]
[EventType "swiss"]
[EventCountry "NOR"]
[SourceTitle "playchess.com"]
[Source "ChessBase"]
[SourceQuality "1"]
[TimeControl "5400+30"]

1. d4 {[%emt 0:00:00]} Nf6 {[%emt 0:00:00]} 2. Bf4 {[%emt 0:00:00]} d5 {[%emt 0:00:07]} 3. e3 {[%emt 0:00:00]} Bf5 {[%emt 0:00:36]} 4. Nf3 {[%emt 0:01:32]} e6 {[%emt 0:00:09]} 5. Bd3 {[%emt 0:01:42]} Bg6 {[%emt 0:03:31]} 6. Ne5 {[%emt 0:03:14]} Bd6 {[%emt 0:01:34]} 7. O-O {[%emt 0:03:39]} O-O {[%emt 0:03:45]} 8. Nxg6 {[%emt 0:06:10]} hxg6 {[%emt 0:00:47]} 9. Bg5 {[%emt 0:00:25]} Nbd7 {[%emt 0:01:41]} 10. f4 {[%emt 0:01:53]} Be7 {[%emt 0:01:11]} 11. Nd2 {[%emt 0:00:57]} Nh7 {[%emt 0:00:21]} 12. h4 {[%emt 0:06:39]} f6 {[%emt 0:04:34]} 13. Bxg6 {[%emt 0:00:36]} fxg5 {[%emt 0:06:05]} 14. hxg5 {[%emt 0:00:56]} Bxg5 {[%emt 0:00:51]} 15. fxg5 {[%emt 0:01:49]} Qxg5 {[%emt 0:00:23]} 16. Bxh7+ {[%emt 0:02:01]} Kxh7 {[%emt 0:00:12]} 17. Qe2 {[%emt 0:10:51]} Nf6 {[%emt 0:02:07]} 18. Rf4 {[%emt 0:05:44]} Ng8 {[%emt 0:04:08]} 19. Raf1 {[%emt 0:13:52]} Rxf4 {[%emt 0:01:21]} 20. Rxf4 {[%emt 0:01:59]} Nh6 {[%emt 0:00:36]} 21. Nf3 {[%emt 0:01:02]} Qe7 {[%emt 0:02:18]} 22. e4 {[%emt 0:03:23]} g5 {[%emt 0:00:14]} 23. Nxg5+ {[%emt 0:02:12]} Qxg5 {[%emt 0:00:08]} 24. Rf1 {[%emt 0:00:56]} Rg8 {[%emt 0:01:11]} 25. exd5 {[%emt 0:00:18]} exd5 {[%emt 0:02:48]} 26. a3 {[%emt 0:00:46]} Nf5 {[%emt 0:00:17]} 27. Rf3 {[%emt 0:01:08]} Nxd4 {[%emt 0:01:51]} 28. Qd3+ {[%emt 0:00:49]} Rg6 {[%emt 0:02:29]} 29. Rh3+ {[%emt 0:04:16]} Kg8 {[%emt 0:00:22]} 30. Qf1 {[%emt 0:01:13]} Qg4 {[%emt 0:00:43]} 31. Re3 {[%emt 0:00:46]} Nf5 {[%emt 0:04:29]} 32. Rd3 {[%emt 0:02:23]} Ng3 {[%emt 0:01:33]} 33. Qf2 {[%emt 0:00:53]} Ne2+ {[%emt 0:00:35]} 34. Kf1 {[%emt 0:00:07]} Nf4 {[%emt 0:00:36]} 35. Rd4 {[%emt 0:00:54]} Qxg2+ {[%emt 0:00:07]} 36. Qxg2 {[%emt 0:00:05]} Nxg2 {[%emt 0:00:15]} 37. Kf2 {[%emt 0:00:14]} Kf7 {[%emt 0:01:17]} 38. Rxd5 {[%emt 0:00:17]} Nf4 {[%emt 0:00:31]} 39. Rd7+ {[%emt 0:00:03]} Kf6 {[%emt 0:00:12]} 40. Rxc7 {[%emt 0:00:04]} Rg7 {[%emt 0:00:09]} 41. Rc4 {[%emt 0:00:13]} Ng6 {[%emt 0:01:34]} 42. b4 {[%emt 0:00:38]} Ne5 {[%emt 0:00:43]} 43. Rc5 {[%emt 0:00:26]} Ke6 {[%emt 0:00:48]} 44. b5 {[%emt 0:00:13]} Kd6 {[%emt 0:00:22]} 45. Rc3 {[%emt 0:00:22]} Rc7 {[%emt 0:00:18]} 46. Rb3 {[%emt 0:00:12]} Rxc2+ {[%emt 0:00:34]} 47. Ke3 {[%emt 0:00:07]} Kc5 {[%emt 0:01:12]} 48. Ke4 {[%emt 0:00:14]} Nc4 {[%emt 0:00:14]} 49. Kd3 {[%emt 0:00:19]} Rb2 {[%emt 0:01:34]} 50. Rc3 {[%emt 0:00:13]} Rd2+ {[%emt 0:00:20]} 51. Ke4 {[%emt 0:00:05]} Ra2 {[%emt 0:00:09]} 52. Kd3 {[%emt 0:00:28]} Rxa3 {[%emt 0:00:09]} 0-1

[Event "Kragero Resort Chess B 2019"]
[Site "Kragero"]
[Date "2019.02.20"]
[Round "1.8"]
[White "Olsen, Tor Harald Aa"]
[Black "Wright, Haakon"]
[Result "0-1"]
[ECO "B27"]
[WhiteElo "1461"]
[BlackElo "1750"]
[Annotator "NA"]
[PlyCount "38"]
[EventDate "2019.02.20"]
[EventType "swiss"]
[EventCountry "NOR"]
[SourceTitle "playchess.com"]
[Source "ChessBase"]
[SourceQuality "1"]
[TimeControl "5400+30"]

1. e4 {[%emt 0:00:00]} c5 {[%emt 0:00:00]} 2. Nf3 {[%emt 0:00:00]} g6 {[%emt 0:00:00]} 3. Bc4 {[%emt 0:01:17]} Bg7 {[%emt 0:00:00]} 4. c3 {[%emt 0:01:16]} Nc6 {[%emt 0:04:22]} 5. d4 {[%emt 0:04:40]} cxd4 {[%emt 0:00:03]} 6. cxd4 {[%emt 0:00:44]} Qb6 {[%emt 0:04:30]} 7. Qb3 {[%emt 0:06:35]} Qxb3 {[%emt 0:00:44]} 8. Bxb3 {[%emt 0:00:15]} Nxd4 {[%emt 0:00:36]} 9. Nxd4 {[%emt 0:00:19]} Bxd4 {[%emt 0:00:03]} 10. O-O {[%emt 0:00:19]} Nf6 {[%emt 0:03:51]} 11. Rd1 {[%emt 0:02:04]} Bb6 {[%emt 0:03:24]} 12. Nc3 {[%emt 0:00:25]} d6 {[%emt 0:03:31]} 13. h3 {[%emt 0:01:04]} h6 {[%emt 0:07:05]} 14. Bf4 {[%emt 0:02:08]} g5 {[%emt 0:00:41]} 15. e5 {[%emt 0:03:26]} Nd7 {[%emt 0:04:59]} 16. exd6 {[%emt 0:16:46]} gxf4 {[%emt 0:02:13]} 17. Re1 {[%emt 0:00:28]} e5 {[%emt 0:03:27]} 18. Nd5 {[%emt 0:01:50]} Kf8 {[%emt 0:11:34]} 19. Rac1 {[%emt 0:03:14]} Nc5 {[%emt 0:04:07]} 0-1

[Event "Kragero Resort Chess B 2019"]
[Site "Kragero"]
[Date "2019.02.21"]
[Round "2.1"]
[White "Gronn, Embla Ekeland"]
[Black "Omtvedt, Per"]
[Result "0-1"]
[ECO "C13"]
[WhiteElo "1633"]
[BlackElo "1918"]
[Annotator "NA"]
[PlyCount "64"]
[EventDate "2019.02.20"]
[EventType "swiss"]
[EventCountry "NOR"]
[SourceTitle "playchess.com"]
[Source "ChessBase"]
[SourceQuality "1"]
[TimeControl "5400+30"]

1. d4 Nf6 2. Nc3 d5 3. Bg5 e6 4. e4 dxe4 5. Nxe4 Be7 6. Bxf6 Bxf6 7. Nf3 O-O 8. c3 b6 9. Bd3 Bb7 10. O-O Nd7 11. Qc2 g6 12. Nxf6+ Qxf6 13. Be4 Bxe4 14. Qxe4 c5 15. Rad1 cxd4 16. Qxd4 Rfd8 17. Rd2 Qxd4 18. Rxd4 Kf8 19. Rfd1 Ke7 20. Kf1 f6 21. Ke2 Nc5 22. Rxd8 Rxd8 23. Rxd8 Kxd8 24. Kd2 Kd7 25. b4 Ne4+ 26. Ke3 Nxc3 27. a3 Nb5 28. a4 Nc3 29. Kd3 Nxa4 30. Kc2 a6 31. Kb3 b5 32. Nd4 {[%emt 0:33:26]} Kd6 {[%emt 0:47:45]} 0-1